Workbook

Sheet التدفق النقدي لاثني عشر شهراً
A2: التدفق النقدي لاثني عشر شهراً | N2: السنة المالية تبدأ في: | P2: 2013-07-01
A3: اسم الشركة
A4: العنوان والمدينة والمنطقة والرمز البريدي
A5: الهاتف والبريد الإلكتروني وموقع ويب
B7: البداية | C7: =FiscalYear -> 2013-07-01 | D7: =DATE(YEAR(C7),MONTH(C7)+1,1) -> 2013-08-01 | E7: =DATE(YEAR(D7),MONTH(D7)+1,1) -> 2013-09-01 | F7: 2013-10-01 | G7: 2013-11-01 | H7: 2013-12-01 | I7: 2014-01-01 | J7: 2014-02-01 | K7: 2014-03-01 | L7: 2014-04-01 | M7: 2014-05-01 | N7: 2014-06-01 | O7: المتوسط الشهري | P7: نظرة عامة
A8: الملخص النقدي
A9: النقد في الصندوق (بداية الشهر) | B9: 55000 | C9: =IF(الإيصالات[[#Totals],[العمود 3]]+PaidOut[[#Totals],[العمود 3]]=0,"",B11) -> 67593 | D9: =IF(الإيصالات[[#Totals],[العمود 4]]+PaidOut[[#Totals],[العمود 4]]=0,"",C11) -> 54265 | E9: =IF(الإيصالات[[#Totals],[العمود 5]]+PaidOut[[#Totals],[العمود 5]]=0,"",D11) -> 55739 | F9: =IF(الإيصالات[[#Totals],[العمود 6]]+PaidOut[[#Totals],[العمود 6]]=0,"",E11) -> 69290 | G9: =IF(الإيصالات[[#Totals],[العمود 7]]+PaidOut[[#Totals],[العمود 7]]=0,"",F11) -> 65618 | H9: =IF(الإيصالات[[#Totals],[العمود 8]]+PaidOut[[#Totals],[العمود 8]]=0,"",G11) ->  | I9: =IF(الإيصالات[[#Totals],[العمود 9]]+PaidOut[[#Totals],[العمود 9]]=0,"",H11) ->  | J9: =IF(الإيصالات[[#Totals],[العمود 10]]+PaidOut[[#Totals],[العمود 10]]=0,"",I11) ->  | K9: =IF(الإيصالات[[#Totals],[العمود 11]]+PaidOut[[#Totals],[العمود 11]]=0,"",J11) ->  | L9: =IF(الإيصالات[[#Totals],[العمود 12]]+PaidOut[[#Totals],[العمود 12]]=0,"",K11) ->  | M9: =IF(الإيصالات[[#Totals],[العمود 13]]+PaidOut[[#Totals],[العمود 13]]=0,"",L11) ->  | N9: =IF(الإيصالات[[#Totals],[العمود 14]]+PaidOut[[#Totals],[العمود 14]]=0,"",M11) ->  | O9: =IFERROR(AVERAGE(الملخص[[#This Row],[العمود 3]:[العمود 14]]),"") -> 62501
A10: النقد المتوفر (في الصندوق + الإيصالات، قبل دفع النقود) | B10: =SUM(B9,الإيصالات[[#Totals],[العمود 2]]) -> 67593 | C10: =IF(C9="","",SUM(C9,الإيصالات[[#Totals],[العمود 3]])) -> 76065 | D10: =IF(D9="","",SUM(D9,الإيصالات[[#Totals],[العمود 4]])) -> 83301 | E10: =IF(E9="","",SUM(E9,الإيصالات[[#Totals],[العمود 5]])) -> 91032 | F10: =IF(F9="","",SUM(F9,الإيصالات[[#Totals],[العمود 6]])) -> 89662 | G10: =IF(G9="","",SUM(G9,الإيصالات[[#Totals],[العمود 7]])) -> 76200 | H10: =IF(H9="","",SUM(H9,الإيصالات[[#Totals],[العمود 8]])) ->  | I10: =IF(I9="","",SUM(I9,الإيصالات[[#Totals],[العمود 9]])) ->  | J10: =IF(J9="","",SUM(J9,الإيصالات[[#Totals],[العمود 10]])) ->  | K10: =IF(K9="","",SUM(K9,الإيصالات[[#Totals],[العمود 11]])) ->  | L10: =IF(L9="","",SUM(L9,الإيصالات[[#Totals],[العمود 12]])) ->  | M10: =IF(M9="","",SUM(M9,الإيصالات[[#Totals],[العمود 13]])) ->  | N10: =IF(N9="","",SUM(N9,الإيصالات[[#Totals],[العمود 14]])) ->  | O10: =IFERROR(AVERAGE(الملخص[[#This Row],[العمود 3]:[العمود 14]]),"") -> 83252
A11: الوضع النقدي (نهاية الشهر) | B11: =(B10-PaidOut[[#Totals],[العمود 2]]) -> 67593 | C11: =IFERROR(C10-PaidOut[[#Totals],[العمود 3]],"") -> 54265 | D11: =IFERROR(D10-PaidOut[[#Totals],[العمود 4]],"") -> 55739 | E11: =IFERROR(E10-PaidOut[[#Totals],[العمود 5]],"") -> 69290 | F11: =IFERROR(F10-PaidOut[[#Totals],[العمود 6]],"") -> 65618 | G11: =IFERROR(G10-PaidOut[[#Totals],[العمود 7]],"") -> 51413 | H11: =IFERROR(H10-PaidOut[[#Totals],[العمود 8]],"") ->  | I11: =IFERROR(I10-PaidOut[[#Totals],[العمود 9]],"") ->  | J11: =IFERROR(J10-PaidOut[[#Totals],[العمود 10]],"") ->  | K11: =IFERROR(K10-PaidOut[[#Totals],[العمود 11]],"") ->  | L11: =IFERROR(L10-PaidOut[[#Totals],[العمود 12]],"") ->  | M11: =IFERROR(M10-PaidOut[[#Totals],[العمود 13]],"") ->  | N11: =IFERROR(N10-PaidOut[[#Totals],[العمود 14]],"") ->  | O11: =IFERROR(AVERAGE(الملخص[[#This Row],[العمود 3]:[العمود 14]]),"") -> 59265
A13: إيصالات النقد
A14: المبيعات النقدية | B14: 5616 | C14: 3889 | D14: 24411 | E14: 31642 | F14: 14647 | G14: 3034 | O14: =IFERROR(AVERAGE(الإيصالات[[#This Row],[العمود 3]:[العمود 14]]),"") -> 15525
A15: مجموعات من حسابات المدين | B15: 4498 | C15: 3493 | D15: 1987 | E15: 1029 | F15: 2911 | G15: 4234 | O15: =IFERROR(AVERAGE(الإيصالات[[#This Row],[العمود 3]:[العمود 14]]),"") -> 2731
A16: القرض/النقدية الأخرى | B16: 2479 | C16: 1090 | D16: 2638 | E16: 2622 | F16: 2814 | G16: 3314 | O16: =IFERROR(AVERAGE(الإيصالات[[#This Row],[العمود 3]:[العمود 14]]),"") -> 2496
A17: إجمالي إيصالات النقد | B17: =SUBTOTAL(109,الإيصالات[العمود 2]) -> 12593 | C17: =SUBTOTAL(109,الإيصالات[العمود 3]) -> 8472 | D17: =SUBTOTAL(109,الإيصالات[العمود 4]) -> 29036 | E17: =SUBTOTAL(109,الإيصالات[العمود 5]) -> 35293 | F17: =SUBTOTAL(109,الإيصالات[العمود 6]) -> 20372 | G17: =SUBTOTAL(109,الإيصالات[العمود 7]) -> 10582 | H17: =SUBTOTAL(109,الإيصالات[العمود 8]) -> 0 | I17: =SUBTOTAL(109,الإيصالات[العمود 9]) -> 0 | J17: =SUBTOTAL(109,الإيصالات[العمود 10]) -> 0 | K17: =SUBTOTAL(109,الإيصالات[العمود 11]) -> 0 | L17: =SUBTOTAL(109,الإيصالات[العمود 12]) -> 0 | M17: =SUBTOTAL(109,الإيصالات[العمود 13]) -> 0 | N17: =SUBTOTAL(109,الإيصالات[العمود 14]) -> 0 | O17: =IFERROR(AVERAGE(الإيصالات[[#Totals],[العمود 3]:[العمود 14]]),"") -> 8646
A19: الدفع نقداً
A20: المشتريات (تحديد) | C20: 521 | D20: 323 | E20: 274 | F20: 451 | G20: 104 | O20: =IFERROR(AVERAGE(PaidOut[[#This Row],[العمود 3]:[العمود 14]]),"") -> 335
A21: إجمالي الأجور (السحب المضبوط) | C21: 10572 | D21: 14514 | E21: 10561 | F21: 13170 | G21: 12478 | O21: =IFERROR(AVERAGE(PaidOut[[#This Row],[العمود 3]:[العمود 14]]),"") -> 12259
A22: التجهيزات (المكتب والتشغيل) | C22: 250 | D22: 428 | E22: 165 | F22: 1168 | G22: 345 | O22: =IFERROR(AVERAGE(PaidOut[[#This Row],[العمود 3]:[العمود 14]]),"") -> 471
A23: الإصلاحات والصيانة | D23: 2200 | E23: 163 | F23: 67 | O23: =IFERROR(AVERAGE(PaidOut[[#This Row],[العمود 3]:[العمود 14]]),"") -> 810
A24: الإعلانات | C24: 1100 | D24: 625 | E24: 1356 | G24: 2560 | O24: =IFERROR(AVERAGE(PaidOut[[#This Row],[العمود 3]:[العمود 14]]),"") -> 1410
A25: الإيجار | C25: 3500 | D25: 3500 | E25: 3500 | F25: 3500 | G25: 3500 | O25: =IFERROR(AVERAGE(PaidOut[[#This Row],[العمود 3]:[العمود 14]]),"") -> 3500
A26: الأدوات المساعدة | C26: 285 | D26: 318 | E26: 151 | F26: 134 | G26: 228 | O26: =IFERROR(AVERAGE(PaidOut[[#This Row],[العمود 3]:[العمود 14]]),"") -> 223
A27: غير ذلك (تحديد) | C27: 123 | D27: 234 | E27: 123 | F27: 234 | G27: 123 | O27: =IFERROR(AVERAGE(PaidOut[[#This Row],[العمود 3]:[العمود 14]]),"") -> 167
A28: قيمة دفعة القرض | C28: 4000 | D28: 4000 | E28: 4000 | F28: 4000 | G28: 4000 | O28: =IFERROR(AVERAGE(PaidOut[[#This Row],[العمود 3]:[العمود 14]]),"") -> 4000
A29: شراء الأصول (تحديد) | C29: 679 | D29: 700 | E29: 679 | F29: 650 | G29: 679 | O29: =IFERROR(AVERAGE(PaidOut[[#This Row],[العمود 3]:[العمود 14]]),"") -> 677
A30: تكاليف بدء المشروع الأخرى | C30: 400 | D30: 350 | E30: 400 | F30: 300 | G30: 400 | O30: =IFERROR(AVERAGE(PaidOut[[#This Row],[العمود 3]:[العمود 14]]),"") -> 370
A31: الاحتياطي و/أو الأموال المودعة لدى الغير | C31: 300 | D31: 300 | E31: 300 | F31: 300 | G31: 300 | O31: =IFERROR(AVERAGE(PaidOut[[#This Row],[العمود 3]:[العمود 14]]),"") -> 300
A32: سحب الملاك | C32: 70 | D32: 70 | E32: 70 | F32: 70 | G32: 70 | O32: =IFERROR(AVERAGE(PaidOut[[#This Row],[العمود 3]:[العمود 14]]),"") -> 70
A33: إجمالي الدفع نقداً | C33: =SUBTOTAL(109,PaidOut[العمود 3]) -> 21800 | D33: =SUBTOTAL(109,PaidOut[العمود 4]) -> 27562 | E33: =SUBTOTAL(109,PaidOut[العمود 5]) -> 21742 | F33: =SUBTOTAL(109,PaidOut[العمود 6]) -> 24044 | G33: =SUBTOTAL(109,PaidOut[العمود 7]) -> 24787 | H33: =SUBTOTAL(109,PaidOut[العمود 8]) -> 0 | I33: =SUBTOTAL(109,PaidOut[العمود 9]) -> 0 | J33: =SUBTOTAL(109,PaidOut[العمود 10]) -> 0 | K33: =SUBTOTAL(109,PaidOut[العمود 11]) -> 0 | L33: =SUBTOTAL(109,PaidOut[العمود 12]) -> 0 | M33: =SUBTOTAL(109,PaidOut[العمود 13]) -> 0 | N33: =SUBTOTAL(109,PaidOut[العمود 14]) -> 0 | O33: =SUM(O20:O32) -> 24593
A36: (معلومات التدفق غير النقدي)بيانات التشغيل الأساسية
A37: حجم المبيعات (بالريال) | B37: 2000 | C37: 2500 | D37: 2257 | E37: 2387 | F37: 2664 | G37: 2324 | O37: =IFERROR(AVERAGE(EssencialOperatingData[[#This Row],[العمود 2]:[العمود 14]]),"") -> 2355
A38: حسابات مدينة | B38: 1500 | C38: 500 | D38: 886 | E38: 1035 | F38: 1775 | G38: 839 | O38: =IFERROR(AVERAGE(EssencialOperatingData[[#This Row],[العمود 2]:[العمود 14]]),"") -> 1089
A39: الدين المعدوم (نهاية الشهر) | B39: 300 | C39: 200 | D39: 225 | E39: 269 | F39: 448 | G39: 359 | O39: =IFERROR(AVERAGE(EssencialOperatingData[[#This Row],[العمود 2]:[العمود 14]]),"") -> 300
A40: المخزون الفعلي (نهاية الشهر) | O40: =IFERROR(AVERAGE(#REF!),"") -> 
A41: حسابات المدفوعات (نهاية الشهر) | O41: =IFERROR(AVERAGE(#REF!),"") -> 
A42: الإهلاك | O42: =IFERROR(AVERAGE(#REF!),"") -> 

Sheet ملخص التدفق النقدي
J26: نقاط البيانات: | K26: 3
C27: (اسحب شريط التمرير أعلاه لتغيير نقاط البيانات الإجمالية في المخطط.)
